fUST/lending_fUST_20241019
["ID","MTS","AMOUNT","RATE_DAILY","PERIOD"]
[340450497,1729269089088,-263.12365783,0.00016041,2]
[340450498,1729269089100,-393.73475803,0.00016041,2]
[340450499,1729269089111,-187.66190258,0.00016041,2]
[340450500,1729269089122,-500.0,0.00016041,2]
[340450501,1729269089132,-333.59948566,0.00016041,2]
[340450502,1729269089143,-357.75372296,0.00016041,2]
[340450503,1729269089154,-151.0,0.00016042,2]
[340450504,1729269089166,-151.0,0.00016042,2]
[340450505,1729269089177,-151.0,0.00016042,2]
[340450506,1729269089190,-683.018993,0.00016042,2]
[340450507,1729269089201,-683.018993,0.00016042,2]
[340450508,1729269089211,-849.96901,0.00016042,2]
[340450509,1729269089222,-849.96901,0.00016042,2]
[340450510,1729269089232,-9477.07170903,0.00016042,2]
[340450511,1729269089245,-37306.2892543,0.00016042,2]
[340450512,1729269089256,-3000.0,0.0001605,2]
[340450513,1729269089266,-151.0,0.0001605,2]
[340450514,1729269089278,-1010.25,0.00016052,2]
[340450515,1729269089289,-932.96,0.00016052,2]
[340450516,1729269089299,-500.0,0.00016052,2]
[340450517,1729269089309,-1801.13,0.00016052,2]
[340450518,1729269089319,-850.71,0.00016052,2]
[340450519,1729269089329,-1312.11,0.00016052,2]
[340450520,1729269089340,-652.36,0.00016052,2]
[340450521,1729269089351,-500.0,0.00016052,2]
[340450522,1729269089361,-624.29,0.00016052,2]
[340450523,1729269089371,-559.70811549,0.00016052,2]
[340450524,1729269089381,-1089.65,0.00016052,2]
[340450525,1729269089393,-1392.8,0.00016052,2]
[340450526,1729269089403,-500.0,0.00016052,2]
[340450527,1729269089413,-516.84,0.00016052,2]
[340450528,1729269089424,-1020.28,0.00016052,2]
[340450529,1729269089434,-151.0,0.00016052,2]
[340450530,1729269089444,-563.79,0.00016052,2]
[340450531,1729269089455,-500.0,0.00016052,2]
[340450532,1729269089466,-570.21184397,0.00016052,2]
[340450533,1729269089476,-755.43,0.00016052,2]
[340450534,1729269089487,-500.0,0.00016052,2]
[340450535,1729269089497,-308.272885,0.00016052,2]
[340450536,1729269089509,-697.8,0.00016052,2]
[340450537,1729269089520,-825.24,0.00016052,2]
[340450538,1729269089530,-308.272885,0.00016052,2]
[340450539,1729269089540,-500.0,0.00016052,2]
[340450540,1729269089551,-653.36,0.00016052,2]
[340450541,1729269089561,-500.0,0.00016052,2]
[340450542,1729269089572,-500.0,0.00016052,2]
[340450543,1729269089582,-721.81,0.00016052,2]
[340450544,1729269089593,-500.0,0.00016052,2]
[340450545,1729269089733,-554.40394401,0.00016052,2]
[340450546,1729269089744,-500.0,0.00016052,2]
[340450547,1729269089754,-389.230116,0.00016052,2]
[340450548,1729269089764,-585.83,0.00016052,2]
[340450549,1729269089774,-389.230116,0.00016052,2]
[340450550,1729269089784,-500.0,0.00016052,2]
[340450551,1729269089793,-614.02,0.00016052,2]
[340450552,1729269089803,-813.49,0.00016052,2]
[340450553,1729269089813,-521.50276045,0.00016052,2]
[340450554,1729269089823,-829.6,0.00016052,2]
[340450555,1729269089837,-1003.72,0.00016052,2]
[340450556,1729269089846,-997.13,0.00016052,2]
[340450557,1729269089855,-797.05,0.00016052,2]
[340450558,1729269089865,-500.0,0.00016052,2]
[340450559,1729269089875,-500.0,0.00016052,2]
[340450560,1729269089884,-500.0,0.00016052,2]
[340450561,1729269089895,-500.0,0.00016052,2]
[340450562,1729269089904,-500.0,0.00016052,2]
[340450563,1729269089915,-676.75,0.00016052,2]
[340450564,1729269089925,-3000.0,0.0001606,2]
[340450565,1729269089934,-3000.0,0.0001607,2]
[340450566,1729269089944,-505.3130149,0.00016073,2]
[340450567,1729269089953,-500.0,0.00016073,2]
[340450568,1729269089964,-3000.0,0.0001608,2]
[340450569,1729269089973,-2000.0,0.00016087,2]
[340450570,1729269089982,-3000.0,0.0001609,2]
[340450571,1729269089993,-151.0,0.0001609,2]
[340450572,1729269090003,-151.0,0.0001609,2]
[340450573,1729269090013,-151.0,0.0001609,2]
[340450574,1729269090023,-683.018993,0.0001609,2]
[340450575,1729269090032,-683.018993,0.0001609,2]
[340450576,1729269090042,-849.96901,0.0001609,2]
[340450577,1729269090052,-500.0,0.00016094,2]
[340450578,1729269090061,-867.86,0.00016094,2]
[340450579,1729269090071,-500.0,0.00016095,2]
[340450580,1729269090080,-1095.17,0.00016095,2]
[340450581,1729269090090,-500.0,0.00016095,2]
[340450582,1729269090099,-852.62,0.00016095,2]
[340450583,1729269090110,-500.0,0.00016095,2]
[340450584,1729269090120,-770.44,0.00016095,2]
[340450585,1729269090130,-500.0,0.00016095,2]
[340450586,1729269090139,-500.0,0.00016095,2]
[340450587,1729269090150,-858.49,0.00016095,2]
[340450588,1729269090160,-859.16,0.00016095,2]
[340450589,1729269090170,-790.93,0.00016095,2]
[340450590,1729269090180,-500.0,0.00016095,2]
[340450591,1729269090191,-1882.83,0.00016095,2]
[340450592,1729269090201,-1402.7,0.00016095,2]
[340450593,1729269090210,-840.07,0.00016095,2]
[340450594,1729269090220,-759.99,0.00016095,2]
[340450595,1729269090231,-843.34,0.00016095,2]
[340450596,1729269090241,-3000.0,0.000161,2]
[340450597,1729269090251,-151.0,0.000161,2]
[340450598,1729269090263,-151.0,0.000161,2]
[340450599,1729269090273,-257.271898,0.000161,2]
[340450600,1729269090283,-683.018993,0.000161,2]
[340450601,1729269090294,-509.42626445,0.000161,2]
[340450602,1729269090304,-683.018993,0.000161,2]
[340450603,1729269090314,-849.96901,0.000161,2]
[340450604,1729269090325,-9477.07170903,0.000161,2]
[340450605,1729269090335,-37306.2892543,0.000161,2]
[340450606,1729269090346,-3000.0,0.0001611,2]
[340450607,1729269090357,-151.0,0.0001611,2]
[340450608,1729269090367,-151.0,0.0001611,2]
[340450609,1729269090377,-151.0,0.0001611,2]
[340450610,1729269090390,-191.868949,0.0001611,2]
[340450611,1729269090402,-151.0,0.0001611,2]
[340450612,1729269090412,-151.0,0.0001611,2]
[340450613,1729269090424,-308.272885,0.0001611,2]
[340450614,1729269090433,-308.272885,0.0001611,2]
[340450615,1729269090443,-389.230116,0.0001611,2]
[340450616,1729269090454,-389.230116,0.0001611,2]
[340450617,1729269090465,-9477.07170903,0.00016118,2]
[340450618,1729269090476,-37306.2892543,0.00016118,2]
[340450619,1729269090486,-151.0,0.00016119,2]
[340450620,1729269090496,-283.428496,0.00016119,2]
[340450621,1729269090505,-683.018993,0.00016119,2]
[340450622,1729269090514,-683.018993,0.00016119,2]
[340450623,1729269090526,-849.96901,0.00016119,2]
[340450624,1729269090536,-3000.0,0.0001612,2]
[340450625,1729269090546,-151.0,0.00016127,2]
[340450626,1729269090555,-1012.61,0.00016127,2]
[340450627,1729269090565,-500.0,0.00016127,2]
[340450628,1729269090574,-500.0,0.00016127,2]
[340450629,1729269090583,-500.0,0.00016127,2]
[340450630,1729269090592,-500.0,0.00016127,2]
[340450631,1729269090601,-802.5,0.00016127,2]
[340450632,1729269090610,-915.29,0.00016127,2]
[340450633,1729269090620,-1004.01,0.00016127,2]
[340450634,1729269090630,-980.95,0.00016127,2]
[340450635,1729269090640,-704.56,0.00016127,2]
[340450636,1729269090651,-500.0,0.00016127,2]
[340450637,1729269090661,-708.83,0.00016127,2]
[340450638,1729269090670,-1845.43,0.00016127,2]
[340450639,1729269090680,-1177.89,0.00016127,2]
[340450640,1729269090689,-663.24,0.00016127,2]
[340450641,1729269090699,-191.515154,0.00016127,2]
[340450642,1729269090710,-1017.86,0.00016127,2]
[340450643,1729269090720,-308.272885,0.00016127,2]
[340450644,1729269090735,-308.272885,0.00016127,2]
[340450645,1729269090754,-500.0,0.00016127,2]
[340450646,1729269090771,-672.27,0.00016127,2]
[340450647,1729269090789,-862.63,0.00016127,2]
[340450648,1729269090808,-836.08,0.00016127,2]
[340450649,1729269090829,-758.64,0.00016127,2]
[340450650,1729269090847,-500.0,0.00016127,2]
[340450651,1729269090864,-879.34,0.00016127,2]
[340450652,1729269090878,-500.0,0.00016127,2]
[340450653,1729269090894,-1322.9,0.00016127,2]
[340450654,1729269090914,-607.82,0.00016127,2]
[340450655,1729269090934,-389.230116,0.00016127,2]
[340450656,1729269090948,-389.230116,0.00016127,2]
[340450657,1729269090968,-1219.61,0.00016127,2]
[340450658,1729269090983,-500.0,0.00016127,2]
[340450659,1729269091001,-2167.53,0.00016127,2]
[340450660,1729269091017,-1058.56,0.00016127,2]
[340450661,1729269091032,-1079.91,0.00016127,2]
[340450662,1729269091049,-9122.09,0.00016127,2]
[340450663,1729269091064,-718.41,0.00016127,2]
[340450664,1729269091079,-151.0,0.00016128,2]
[340450665,1729269091094,-151.0,0.00016128,2]
[340450666,1729269091107,-151.0,0.00016128,2]
[340450667,1729269091123,-151.0,0.00016128,2]
[340450668,1729269091136,-3000.0,0.0001613,2]
[340450669,1729269091151,-308.272885,0.0001613,2]
[340450670,1729269091166,-308.272885,0.0001613,2]
[340450671,1729269091180,-389.230116,0.0001613,2]
[340450672,1729269091194,-389.230116,0.0001613,2]
[340450673,1729269091207,-2500.0,0.00016139,2]
[340450674,1729269091225,-3000.0,0.0001614,2]
[340450675,1729269091241,-3000.0,0.0001615,2]
[340450676,1729269091256,-1000.0,0.0001615,2]
[340450677,1729269091269,-1000.0,0.0001615,2]
[340450678,1729269091284,-1000.0,0.0001615,2]
[340450679,1729269091298,-1000.0,0.0001615,2]
[340450680,1729269091312,-1000.0,0.0001615,2]
[340450681,1729269091326,-554.60935056,0.0001615,2]
[340450682,1729269091339,-151.0,0.0001615,2]
[340450683,1729269091354,-151.0,0.0001615,2]
[340450684,1729269091367,-151.0,0.0001615,2]
[340450685,1729269091381,-151.0,0.0001615,2]
[340450686,1729269091397,-683.018993,0.0001615,2]
[340450687,1729269091410,-683.018993,0.0001615,2]
[340450688,1729269091425,-849.96901,0.0001615,2]
[340450689,1729269091439,-3000.0,0.0001616,2]
[340450690,1729269091452,-3000.0,0.0001617,2]
[340450691,1729269091469,-3000.0,0.0001618,2]
[340450692,1729269091483,-3000.0,0.0001619,2]
[340450693,1729269091498,-3000.0,0.00016195,2]
[340450694,1729269091511,-3000.0,0.000162,2]
[340450695,1729269091526,-150.112233,0.000162,2]
[340450696,1729269091540,-151.0,0.000162,2]
[340450697,1729269091554,-683.018993,0.000162,2]
[340450698,1729269091568,-683.018993,0.000162,2]
[340450699,1729269091583,-849.96901,0.000162,2]
[340450700,1729269091598,-9477.07170903,0.000162,2]
[340450701,1729269091612,-37306.2892543,0.000162,2]
[340450702,1729269091626,-3000.0,0.0001621,2]
[340450703,1729269091640,-308.272885,0.0001621,2]
[340450704,1729269091654,-308.272885,0.0001621,2]
[340450705,1729269091668,-389.230116,0.0001621,2]
[340450706,1729269091681,-389.230116,0.0001621,2]
[340450707,1729269091695,-3000.0,0.0001622,2]
[340450708,1729269091710,-500.0,0.00016224,2]
[340450709,1729269091725,-1894.32,0.00016224,2]
[340450710,1729269091739,-1187.62,0.00016224,2]
[340450711,1729269091754,-549.5,0.00016224,2]
[340450712,1729269091768,-1942.86,0.00016224,2]
[340450713,1729269091781,-1740.53,0.00016224,2]
[340450714,1729269091795,-996.09,0.00016224,2]
[340450715,1729269091810,-1578.93,0.00016224,2]
[340450716,1729269091822,-997.56,0.00016224,2]
[340450717,1729269091840,-2343.64,0.00016224,2]
[340450718,1729269091853,-500.0,0.00016224,2]
[340450719,1729269091867,-961.84,0.00016224,2]
[340450720,1729269091883,-697.69,0.00016224,2]
[340450721,1729269091898,-1320.6,0.00016224,2]
[340450722,1729269091914,-824.0,0.00016224,2]
[340450723,1729269091928,-1257.2,0.00016224,2]
[340450724,1729269091944,-2476.53,0.00016224,2]
[340450725,1729269091958,-1243.63,0.00016224,2]
[340450726,1729269091973,-764.81,0.00016224,2]
[340450727,1729269091988,-7935.75,0.00016224,2]
[340450728,1729269092002,-1362.97,0.00016224,2]
[340450729,1729269092016,-840.63,0.00016224,2]
[340450730,1729269092029,-3000.0,0.0001623,2]
[340450732,1729269092043,-151.0,0.0001623,2]
[340450733,1729269092058,-151.0,0.0001623,2]
[340450734,1729269092074,-151.0,0.0001623,2]
[340450735,1729269092089,-308.272885,0.0001623,2]
[340450736,1729269092102,-308.272885,0.0001623,2]
[340450737,1729269092116,-389.230116,0.0001623,2]
[340450738,1729269092131,-389.230116,0.0001623,2]
[340450739,1729269092145,-151.0,0.00016239,2]
[340450740,1729269092160,-3000.0,0.0001624,2]
[340450741,1729269092175,-3000.0,0.0001625,2]
[340450742,1729269092191,-9477.07170903,0.0001625,2]
[340450743,1729269092205,-3500.0,0.00016254,2]
[340450744,1729269092220,-151.0,0.00016254,2]
[340450745,1729269092234,-151.0,0.00016254,2]
[340450746,1729269092248,-683.018993,0.00016254,2]
[340450747,1729269092262,-683.018993,0.00016254,2]
[340450748,1729269092276,-849.96901,0.00016254,2]
[340450749,1729269092290,-3000.0,0.0001626,2]
[340450750,1729269092304,-814.48260078,0.0001626,2]
[340450751,1729269092319,-3000.0,0.0001627,2]
[340450752,1729269092334,-3000.0,0.0001628,2]
[340450753,1729269092348,-3000.0,0.0001629,2]
[340450754,1729269092543,-151.0,0.0001629,2]
[340450755,1729269092575,-151.0,0.0001629,2]
[340450756,1729269092584,-151.0,0.0001629,2]
[340450757,1729269092594,-308.272885,0.0001629,2]
[340450758,1729269092604,-308.272889,0.0001629,2]
[340450759,1729269092614,-389.230116,0.0001629,2]
[340450760,1729269092623,-389.230108,0.0001629,2]
[340450761,1729269092633,-3000.0,0.000163,2]
[340450762,1729269092643,-600.0,0.00016307,2]
[340450763,1729269092653,-3000.0,0.0001631,2]
[340450764,1729269092663,-9477.07170903,0.0001631,2]
[340450765,1729269092672,-4000.0,0.00016316,2]
[340450766,1729269092682,-3000.0,0.0001632,2]
[340450767,1729269092692,-151.0,0.0001632,2]
[340450768,1729269092701,-683.018993,0.0001632,2]
[340450769,1729269092711,-683.018996,0.0001632,2]
[340450770,1729269092720,-849.96901,0.0001632,2]
[340450771,1729269092730,-1010.25,0.00016326,2]
[340450772,1729269092740,-932.96,0.00016326,2]
[340450773,1729269092750,-500.0,0.00016326,2]
[340450774,1729269092759,-1801.13,0.00016326,2]
[340450775,1729269092769,-850.71,0.00016326,2]
[340450776,1729269092778,-1312.11,0.00016326,2]
[340450777,1729269092788,-652.36,0.00016326,2]
[340450778,1729269092798,-500.0,0.00016326,2]
[340450779,1729269092808,-624.29,0.00016326,2]
[340450780,1729269092818,-1089.65,0.00016326,2]
[340450781,1729269092830,-1392.8,0.00016326,2]
[340450782,1729269092839,-500.0,0.00016326,2]
[340450783,1729269092848,-516.84,0.00016326,2]
[340450784,1729269092857,-1020.28,0.00016326,2]
[340450785,1729269092867,-563.79,0.00016326,2]
[340450786,1729269092876,-500.0,0.00016326,2]
[340450787,1729269092885,-755.43,0.00016326,2]
[340450788,1729269092895,-500.0,0.00016326,2]
[340450789,1729269092906,-697.8,0.00016326,2]
[340450790,1729269092915,-825.24,0.00016326,2]
[340450791,1729269092925,-428.12173628,0.00016326,2]
[340450792,1729269092934,-653.36,0.00016326,2]
[340450793,1729269092944,-500.0,0.00016326,2]
[340450794,1729269092953,-500.0,0.00016326,2]
[340450795,1729269092964,-721.81,0.00016326,2]
[340450796,1729269092973,-500.0,0.00016326,2]
[340450797,1729269092982,-500.0,0.00016326,2]
[340450798,1729269092991,-585.83,0.00016326,2]
[340450799,1729269093000,-500.0,0.00016326,2]
[340450800,1729269093010,-614.02,0.00016326,2]
[340450801,1729269093019,-813.49,0.00016326,2]
[340450802,1729269093029,-829.6,0.00016326,2]
[340450803,1729269093039,-1003.72,0.00016326,2]
[340450804,1729269093048,-997.13,0.00016326,2]
[340450805,1729269093058,-797.05,0.00016326,2]
[340450806,1729269093068,-510.02665194,0.00016326,2]
[340450807,1729269093078,-500.0,0.00016326,2]
[340450808,1729269093087,-500.0,0.00016326,2]
[340450809,1729269093097,-500.0,0.00016326,2]
[340450810,1729269093107,-248.72476241,0.00016326,2]
[340450811,1729269093118,-676.75,0.00016326,2]
[340450812,1729269093127,-3000.0,0.0001633,2]
[340450813,1729269093138,-3000.0,0.0001634,2]
[340450814,1729269093147,-9477.07170903,0.0001634,2]
[340450815,1729269093156,-3000.0,0.0001635,2]
[340450816,1729269093166,-151.0,0.0001635,2]
[340450817,1729269093175,-151.0,0.0001635,2]
[340450818,1729269093186,-151.0,0.0001635,2]
[340450819,1729269093196,-18957.46849286,0.0001636,2]
[340450820,1729269093206,-3000.0,0.0001636,2]
[340450821,1729269093217,-151.0,0.0001636,2]
[340450822,1729269093227,-500.0,0.00016368,2]
[340450823,1729269093237,-867.86,0.00016368,2]
[340450824,1729269093246,-500.0,0.00016369,2]
[340450825,1729269093256,-1095.17,0.00016369,2]
[340450826,1729269093265,-500.0,0.00016369,2]
[340450827,1729269093275,-852.62,0.00016369,2]
[340450828,1729269093285,-500.0,0.00016369,2]
[340450829,1729269093295,-770.44,0.00016369,2]
[340450830,1729269093306,-500.0,0.00016369,2]
[340450831,1729269093315,-500.0,0.00016369,2]
[340450832,1729269093325,-858.49,0.00016369,2]
[340450833,1729269093335,-859.16,0.00016369,2]
[340450834,1729269093345,-790.93,0.00016369,2]
[340450835,1729269093355,-500.0,0.00016369,2]
[340450836,1729269093364,-1882.83,0.00016369,2]
[340450837,1729269093375,-1402.7,0.00016369,2]
[340450838,1729269093385,-840.07,0.00016369,2]
[340450839,1729269093396,-759.99,0.00016369,2]
[340450840,1729269093406,-843.34,0.00016369,2]
[340450841,1729269093415,-3000.0,0.0001637,2]
[340450842,1729269093425,-3000.0,0.0001638,2]
[340450843,1729269093435,-4500.0,0.00016382,2]
[340450844,1729269093446,-151.0,0.00016382,2]
[340450845,1729269093456,-188.29916484,0.00016382,2]
[340450846,1729269093465,-3000.0,0.0001639,2]
[340450847,1729269093475,-3000.0,0.000164,2]
[340450848,1729269093485,-150.112233,0.000164,2]
[340450849,1729269093494,-1012.61,0.00016401,2]
[340450850,1729269093504,-500.0,0.00016401,2]
[340450851,1729269093515,-500.0,0.00016401,2]
[340450852,1729269093524,-500.0,0.00016401,2]
[340450853,1729269093533,-500.0,0.00016401,2]
[340450854,1729269093543,-802.5,0.00016401,2]
[340450855,1729269093552,-915.29,0.00016401,2]
[340450856,1729269093561,-1004.01,0.00016401,2]
[340450857,1729269093571,-980.95,0.00016401,2]
[340450858,1729269093580,-704.56,0.00016401,2]
[340450859,1729269093590,-500.0,0.00016401,2]
[340450860,1729269093599,-708.83,0.00016401,2]
[340450861,1729269093609,-1845.43,0.00016401,2]
[340450862,1729269093618,-1177.89,0.00016401,2]
[340450863,1729269093627,-663.24,0.00016401,2]
[340450864,1729269093637,-1017.86,0.00016401,2]
[340450865,1729269093647,-500.0,0.00016401,2]
[340450866,1729269093656,-862.63,0.00016401,2]
[340450867,1729269093666,-672.27,0.00016401,2]
[340450868,1729269093675,-836.08,0.00016401,2]
[340450869,1729269093685,-758.64,0.00016401,2]
[340450870,1729269093695,-500.0,0.00016401,2]
[340450871,1729269093705,-879.34,0.00016401,2]
[340450872,1729269093715,-500.0,0.00016401,2]
[340450873,1729269093724,-1322.9,0.00016401,2]
[340450874,1729269093734,-607.82,0.00016401,2]
[340450875,1729269093743,-1219.61,0.00016401,2]
[340450876,1729269093753,-500.0,0.00016401,2]
[340450877,1729269093762,-2167.53,0.00016401,2]
[340450878,1729269093771,-1058.56,0.00016401,2]
[340450879,1729269093781,-1079.91,0.00016401,2]
[340450880,1729269093790,-9122.09,0.00016401,2]
[340450881,1729269093800,-718.41,0.00016401,2]
[340450882,1729269093810,-3000.0,0.0001641,2]
[340450883,1729269093820,-420.0,0.00016415,2]
[340450884,1729269093833,-9477.07170903,0.00016418,2]
[340450885,1729269093843,-3000.0,0.0001642,2]
[340450886,1729269093852,-151.0,0.00016428,2]
[340450887,1729269093862,-167.656552,0.00016428,2]
[340450888,1729269093873,-3000.0,0.0001643,2]
[340450889,1729269093882,-166.9,0.00016438,2]
[340450890,1729269093892,-634.964805,0.00016438,2]
[340450891,1729269093902,-634.964805,0.00016438,2]
[340450892,1729269093911,-634.964805,0.00016438,2]
[340450893,1729269093921,-634.964805,0.00016438,2]
[340450894,1729269093930,-634.964805,0.00016438,2]
[340450895,1729269093939,-634.964805,0.00016438,2]
[340450896,1729269093948,-634.964805,0.00016438,2]
[340450897,1729269093957,-634.964805,0.00016438,2]
[340450898,1729269093968,-634.964805,0.00016438,2]
[340450899,1729269093977,-634.964805,0.00016438,2]
[340450900,1729269093986,-634.964805,0.00016438,2]
[340450901,1729269093996,-634.964805,0.00016438,2]
[340450902,1729269094006,-3000.0,0.0001644,2]
[340450903,1729269094015,-5000.0,0.00016449,2]
[340450904,1729269094026,-24613.56410642,0.0001645,2]
[340450905,1729269094036,-3000.0,0.0001645,2]
[340450906,1729269094046,-9477.07170903,0.0001645,2]
[340450907,1729269094057,-3000.0,0.0001646,2]
[340450908,1729269094066,-634.964805,0.0001646,2]
[340450909,1729269094077,-634.964805,0.0001646,2]
[340450910,1729269094088,-151.0,0.0001646,2]
[340450911,1729269094097,-3000.0,0.0001647,2]
[340450912,1729269094107,-600.0,0.00016476,2]
[340450913,1729269094116,-3000.0,0.0001648,2]
[340450914,1729269094127,-3000.0,0.0001649,2]
[340450915,1729269094137,-500.0,0.00016498,2]
[340450916,1729269094146,-1894.32,0.00016498,2]
[340450917,1729269094156,-1187.62,0.00016498,2]
[340450918,1729269094166,-549.5,0.00016498,2]
[340450919,1729269094177,-1942.86,0.00016498,2]
[340450920,1729269094186,-1740.53,0.00016498,2]
[340450921,1729269094197,-996.09,0.00016498,2]
[340450922,1729269094207,-1578.93,0.00016498,2]
[340450923,1729269094218,-997.56,0.00016498,2]
[340450924,1729269094228,-2343.64,0.00016498,2]
[340450925,1729269094238,-500.0,0.00016498,2]
[340450926,1729269094248,-961.84,0.00016498,2]
[340450927,1729269094257,-697.69,0.00016498,2]
[340450928,1729269094267,-1320.6,0.00016498,2]
[340450929,1729269094276,-824.0,0.00016498,2]
[340450930,1729269094286,-420.0,0.00016498,2]
[340450931,1729269094295,-1257.2,0.00016498,2]
[340450932,1729269094306,-2476.53,0.00016498,2]
[340450933,1729269094316,-1243.63,0.00016498,2]
[340450934,1729269094327,-764.81,0.00016498,2]
[340450935,1729269094336,-7935.75,0.00016498,2]
[340450936,1729269094345,-1362.97,0.00016498,2]
[340450937,1729269094355,-840.63,0.00016498,2]
[340450938,1729269094364,-3000.0,0.000165,2]
[340450939,1729269094374,-3000.0,0.0001651,2]
[340450940,1729269094383,-5261.78022248,0.00016519,2]
[340450941,1729269094392,-3000.0,0.0001652,2]
[340450942,1729269094402,-153.0,0.00016521,2]
[340450943,1729269094411,-306.0,0.00016521,2]
[340450944,1729269094421,-153.0,0.00016521,2]
[340450945,1729269094431,-377.5606873,0.00016521,2]
[340450946,1729269094440,-153.0,0.00016521,2]
[340450947,1729269094449,-210.3543857,0.00016521,2]
[340450948,1729269094459,-153.0,0.00016521,2]
[340450949,1729269094469,-153.0,0.00016521,2]
[340450950,1729269094479,-3000.0,0.0001653,2]
[340450951,1729269094489,-3000.0,0.0001654,2]
[340450952,1729269094498,-414.6078501,0.00016548,2]
[340450953,1729269094508,-153.0,0.00016548,2]
[340450954,1729269094519,-151.0519224,0.00016548,2]
[340450955,1729269094528,-153.0,0.00016548,2]
[340450956,1729269094538,-414.6078501,0.00016548,2]
[340450957,1729269094548,-151.0519224,0.00016548,2]
[340450958,1729269094558,-153.0,0.00016548,2]
[340450959,1729269094567,-414.6078501,0.00016548,2]
[340450960,1729269094577,-210.5530868,0.00016548,2]
[340450961,1729269094587,-151.0519224,0.00016548,2]
[340450962,1729269094596,-153.0,0.00016548,2]
[340450963,1729269094606,-151.0519224,0.00016548,2]
[340450964,1729269094617,-210.5530868,0.00016548,2]
[340450965,1729269094627,-3000.0,0.0001655,2]
[340450966,1729269094636,-9477.07170903,0.0001655,2]
[340450967,1729269094646,-3000.0,0.0001656,2]
[340450968,1729269094656,-3000.0,0.0001657,2]
[340450969,1729269094665,-3000.0,0.0001658,2]
[340450970,1729269094674,-3000.0,0.0001659,2]
[340450971,1729269094684,-3000.0,0.000166,2]
[340450972,1729269094694,-1010.25,0.000166,2]
[340450973,1729269094703,-932.96,0.000166,2]
[340450974,1729269094712,-500.0,0.000166,2]
[340450975,1729269094722,-1801.13,0.000166,2]
[340450976,1729269094731,-850.71,0.000166,2]
[340450977,1729269094740,-1312.11,0.000166,2]
[340450978,1729269094749,-652.36,0.000166,2]
[340450979,1729269094897,-500.0,0.000166,2]
[340450980,1729269094910,-624.29,0.000166,2]
[340450981,1729269094920,-1089.65,0.000166,2]
[340450982,1729269094931,-1392.8,0.000166,2]
[340450983,1729269094941,-500.0,0.000166,2]
[340450984,1729269094950,-516.84,0.000166,2]
[340450985,1729269094960,-1020.28,0.000166,2]
[340450986,1729269094973,-563.79,0.000166,2]
[340450987,1729269094983,-500.0,0.000166,2]
[340450988,1729269094993,-755.43,0.000166,2]
[340450989,1729269095004,-500.0,0.000166,2]
[340450990,1729269095014,-697.8,0.000166,2]
[340450991,1729269095024,-825.24,0.000166,2]
[340450992,1729269095034,-653.36,0.000166,2]
[340450993,1729269095044,-500.0,0.000166,2]
[340450994,1729269095053,-500.0,0.000166,2]
[340450995,1729269095062,-721.81,0.000166,2]
[340450996,1729269095072,-500.0,0.000166,2]
[340450997,1729269095082,-500.0,0.000166,2]